Workbook

Sheet Micro Graphs
A2: Updated: | B2: 2011-05-20
S9: =62400/30 -> 2080

Sheet Macro Graphs
A2: Updated: | B2: 2013-06-24

Sheet TaskRawData
A1: Subject | B1: Completed | C1: In Date | D1: Out Date | E1: Category | F1: Task life-time
A2: XXX | B2: TRUE | C2: 2012-12-02 | D2: 2013-04-08 | E2: Dead; Личное | F2: =D2-C2 -> 127
A3: XXX | B3: TRUE | C3: 2012-12-25 | D3: 2013-03-19 | E3: Личное | F3: 84
A4: XXX | B4: TRUE | C4: 2013-01-28 | D4: 2013-03-05 | E4: TO CHECK | F4: 36
A5: XXX | B5: TRUE | C5: 2013-01-30 | D5: 2013-06-03 | E5: Dead | F5: 124
A6: XXX | B6: TRUE | C6: 2013-01-31 | D6: 2013-03-05 | F6: 33
A7: XXX | B7: TRUE | C7: 2013-02-01 | D7: 2013-06-03 | E7: Dead; TO CHECK | F7: 122
A8: XXX | B8: TRUE | C8: 2013-02-08 | D8: 2013-04-08 | E8: Dead; Личное | F8: 59
A9: XXX | B9: TRUE | C9: 2013-02-14 | D9: 2013-03-19 | E9: Личное | F9: 33
A10: XXX | B10: TRUE | C10: 2013-02-18 | D10: 2013-03-13 | E10: TO CHECK | F10: 23
A11: XXX | B11: TRUE | C11: 2013-02-18 | D11: 2013-03-25 | E11: Dead; Личное | F11: 35
A12: XXX | B12: FALSE | C12: 2013-02-21 | E12: TO CHECK | F12: =TODAY()-C12 -> 649
A13: XXX | B13: TRUE | C13: 2013-02-23 | D13: 2013-03-11 | E13: Личное | F13: =D13-C13 -> 16
A14: XXX | B14: TRUE | C14: 2013-02-25 | D14: 2013-03-20 | E14: Dead; Личное | F14: 23
A15: XXX | B15: TRUE | C15: 2013-02-26 | D15: 2013-03-11 | E15: Dead; TO CHECK | F15: 13
A16: XXX | B16: TRUE | C16: 2013-02-28 | D16: 2013-03-05 | F16: 5
A17: XXX | B17: TRUE | C17: 2013-03-01 | D17: 2013-03-07 | E17: TO CHECK | F17: 6
A18: XXX | B18: TRUE | C18: 2013-03-01 | D18: 2013-03-13 | E18: TO CHECK | F18: 12
A19: XXX | B19: TRUE | C19: 2013-03-01 | D19: 2013-03-06 | E19: TO CHECK | F19: 5
A20: XXX | B20: TRUE | C20: 2013-03-01 | D20: 2013-04-08 | E20: Dead; TO CHECK | F20: 38
A21: XXX | B21: TRUE | C21: 2013-03-04 | D21: 2013-03-06 | F21: 2
A22: XXX | B22: TRUE | C22: 2013-03-04 | D22: 2013-03-07 | F22: 3
A23: XXX | B23: TRUE | C23: 2013-03-04 | D23: 2013-03-14 | E23: Личное | F23: 10
A24: XXX | B24: TRUE | C24: 2013-03-04 | D24: 2013-03-07 | E24: TO CHECK | F24: 3
A25: XXX | B25: TRUE | C25: 2013-03-05 | D25: 2013-03-05 | F25: 0
A26: XXX | B26: TRUE | C26: 2013-03-05 | D26: 2013-03-05 | F26: 0
A27: XXX | B27: TRUE | C27: 2013-03-05 | D27: 2013-03-06 | F27: 1
A28: XXX | B28: TRUE | C28: 2012-09-12 | D28: 2012-09-12 | F28: 0
A29: XXX | B29: TRUE | C29: 2012-09-11 | D29: 2012-09-12 | F29: 1
A30: XXX | B30: TRUE | C30: 2012-09-11 | D30: 2012-09-12 | E30: TO CHECK | F30: 1
A31: XXX | B31: TRUE | C31: 2012-09-11 | D31: 2012-09-11 | E31: TO CHECK | F31: 0
A32: XXX | B32: TRUE | C32: 2012-09-11 | D32: 2012-09-11 | F32: 0
A33: XXX | B33: TRUE | C33: 2012-09-11 | D33: 2012-09-11 | F33: 0
A34: XXX | B34: TRUE | C34: 2012-09-11 | D34: 2012-09-11 | F34: 0
A35: XXX | B35: TRUE | C35: 2012-09-10 | D35: 2012-09-11 | F35: 1
A36: XXX | B36: TRUE | C36: 2012-09-10 | D36: 2012-09-11 | F36: 1
A37: XXX | B37: TRUE | C37: 2012-09-10 | D37: 2012-09-10 | F37: 0
A38: XXX | B38: TRUE | C38: 2012-09-07 | D38: 2012-09-10 | F38: 3
A39: XXX | B39: TRUE | C39: 2012-09-06 | D39: 2012-09-07 | F39: 1
A40: XXX | B40: TRUE | C40: 2012-09-06 | D40: 2012-09-07 | F40: 1
A41: XXX | B41: TRUE | C41: 2012-09-06 | D41: 2012-09-07 | F41: 1
A42: XXX | B42: TRUE | C42: 2012-09-06 | D42: 2012-09-06 | E42: TO CHECK | F42: 0
A43: XXX | B43: TRUE | C43: 2012-09-06 | D43: 2012-09-10 | F43: 4
A44: XXX | B44: TRUE | C44: 2012-09-06 | D44: 2012-09-06 | F44: 0
A45: XXX | B45: TRUE | C45: 2012-09-05 | D45: 2012-09-10 | F45: 5
A46: XXX | B46: TRUE | C46: 2012-09-05 | D46: 2012-09-05 | F46: 0
A47: XXX | B47: TRUE | C47: 2012-09-03 | D47: 2012-09-06 | F47: 3
A48: XXX | B48: TRUE | C48: 2012-09-01 | D48: 2012-09-07 | E48: Dead | F48: 6
A49: XXX | B49: TRUE | C49: 2012-08-31 | D49: 2012-09-05 | F49: 5
A50: XXX | B50: TRUE | C50: 2012-08-30 | D50: 2012-09-06 | E50: Dead | F50: 7
A51: XXX | B51: TRUE | C51: 2012-08-29 | D51: 2012-09-05 | F51: 7
A52: XXX | B52: TRUE | C52: 2012-08-23 | D52: 2012-09-07 | E52: Dead | F52: 15
A53: XXX | B53: TRUE | C53: 2012-08-21 | D53: 2012-09-12 | F53: 22
A54: XXX | B54: TRUE | C54: 2012-08-20 | D54: 2012-09-11 | E54: TO CHECK | F54: 22
A55: XXX | B55: TRUE | C55: 2012-05-21 | D55: 2012-09-07 | E55: Dead | F55: 109
A56: XXX | B56: TRUE | C56: 2012-05-05 | D56: 2012-09-07 | E56: Dead | F56: 125
A57: XXX | B57: TRUE | C57: 2012-03-21 | D57: 2012-09-07 | E57: Dead | F57: 170
A58: XXX | B58: TRUE | C58: 2012-09-10 | D58: 2012-09-10 | F58: 0
A59: XXX | B59: TRUE | C59: 2013-03-01 | D59: 2013-03-01 | F59: 0
A60: XXX | B60: TRUE | C60: 2013-03-01 | D60: 2013-03-01 | E60: TO CHECK | F60: 0
A61: XXX | B61: TRUE | C61: 2013-02-13 | D61: 2013-02-19 | E61: TO CHECK | F61: 6
A62: XXX | B62: TRUE | C62: 2013-02-12 | D62: 2013-02-12 | F62: 0
A63: XXX | B63: TRUE | C63: 2013-02-11 | D63: 2013-02-20 | E63: Dead | F63: 9
A64: XXX | B64: TRUE | C64: 2013-02-07 | D64: 2013-02-08 | F64: 1
A65: XXX | B65: TRUE | C65: 2013-02-06 | D65: 2013-02-08 | F65: 2
A66: XXX | B66: TRUE | C66: 2013-02-01 | D66: 2013-02-08 | F66: 7
A67: XXX | B67: TRUE | C67: 2013-02-01 | D67: 2013-02-08 | F67: 7
A68: XXX | B68: TRUE | C68: 2013-02-01 | D68: 2013-02-08 | F68: 7
A69: XXX | B69: TRUE | C69: 2013-02-01 | D69: 2013-02-01 | E69: TO CHECK | F69: 0
A70: XXX | B70: TRUE | C70: 2013-01-31 | D70: 2013-02-01 | E70: Dead | F70: 1
A71: XXX | B71: TRUE | C71: 2013-01-31 | D71: 2013-01-31 | E71: TO CHECK | F71: 0
A72: XXX | B72: TRUE | C72: 2013-01-31 | D72: 2013-01-31 | E72: TO CHECK | F72: 0
A73: XXX | B73: TRUE | C73: 2013-01-28 | D73: 2013-01-28 | E73: TO CHECK | F73: 0
A74: XXX | B74: TRUE | C74: 2013-01-28 | D74: 2013-01-31 | F74: 3
A75: XXX | B75: TRUE | C75: 2013-01-25 | D75: 2013-01-30 | F75: 5
A76: XXX | B76: TRUE | C76: 2013-01-25 | D76: 2013-01-28 | F76: 3
A77: XXX | B77: TRUE | C77: 2013-01-25 | D77: 2013-01-28 | F77: =D77-C77 -> 3
A78: XXX | B78: TRUE | C78: 2012-12-27 | D78: 2013-02-11 | E78: TO CHECK | F78: 46
A79: XXX | B79: TRUE | C79: 2012-12-27 | D79: 2012-12-27 | E79: TO CHECK | F79: 0
A80: XXX | B80: TRUE | C80: 2012-12-25 | D80: 2013-01-04 | F80: 10
A81: XXX | B81: TRUE | C81: 2012-12-24 | D81: 2013-01-30 | F81: 37
A82: XXX | B82: TRUE | C82: 2012-12-22 | D82: 2012-12-25 | F82: 3
A83: XXX | B83: TRUE | C83: 2012-12-17 | D83: 2013-01-31 | F83: 45
A84: XXX | B84: TRUE | C84: 2012-12-13 | D84: 2012-12-21 | E84: Dead | F84: 8
A85: XXX | B85: TRUE | C85: 2012-12-13 | D85: 2012-12-13 | F85: 0
A86: XXX | B86: TRUE | C86: 2012-12-11 | D86: 2012-12-13 | E86: TO CHECK | F86: 2
A87: XXX | B87: TRUE | C87: 2012-12-10 | D87: 2012-12-11 | E87: TO CHECK | F87: 1
A88: XXX | B88: TRUE | C88: 2012-12-10 | D88: 2012-12-17 | E88: Dead | F88: 7
A89: XXX | B89: TRUE | C89: 2012-12-05 | D89: 2012-12-10 | E89: Dead | F89: 5
A90: XXX | B90: TRUE | C90: 2012-12-05 | D90: 2013-02-01 | F90: 58
A91: XXX | B91: TRUE | C91: 2012-12-05 | D91: 2012-12-05 | E91: TO CHECK | F91: 0
A92: XXX | B92: TRUE | C92: 2012-12-05 | D92: 2012-12-24 | E92: TO CHECK | F92: 19
A93: XXX | B93: TRUE | C93: 2012-12-03 | D93: 2012-12-10 | F93: 7
A94: XXX | B94: TRUE | C94: 2012-11-30 | D94: 2012-12-01 | F94: 1
A95: XXX | B95: TRUE | C95: 2012-11-30 | D95: 2013-01-25 | F95: 56
A96: XXX | B96: TRUE | C96: 2012-11-30 | D96: 2012-12-27 | E96: Dead | F96: 27
A97: XXX | B97: TRUE | C97: 2012-11-29 | D97: 2012-12-10 | F97: 11
A98: XXX | B98: TRUE | C98: 2012-11-29 | D98: 2012-11-29 | E98: TO CHECK | F98: 0
A99: XXX | B99: TRUE | C99: 2012-11-26 | D99: 2012-12-03 | E99: Dead | F99: 7
A100: XXX | B100: TRUE | C100: 2012-11-26 | D100: 2012-12-10 | E100: Dead | F100: 14
A101: XXX | B101: TRUE | C101: 2012-11-26 | D101: 2012-11-26 | E101: TO CHECK | F101: 0
A102: XXX | B102: TRUE | C102: 2012-11-26 | D102: 2012-12-17 | E102: Dead | F102: 21
A103: XXX | B103: TRUE | C103: 2012-11-26 | D103: 2012-11-28 | F103: 2
A104: XXX | B104: TRUE | C104: 2012-11-19 | D104: 2012-12-13 | F104: 24
A105: XXX | B105: TRUE | C105: 2012-11-15 | D105: 2012-12-21 | E105: Dead | F105: 36
A106: XXX | B106: TRUE | C106: 2012-11-15 | D106: 2012-11-26 | E106: TO CHECK | F106: 11
A107: XXX | B107: TRUE | C107: 2012-11-14 | D107: 2012-11-15 | F107: 1
A108: XXX | B108: TRUE | C108: 2012-11-14 | D108: 2013-01-25 | F108: 72
A109: XXX | B109: TRUE | C109: 2012-11-08 | D109: 2012-11-12 | F109: 4
A110: XXX | B110: TRUE | C110: 2012-11-07 | D110: 2012-11-12 | F110: 5
A111: XXX | B111: TRUE | C111: 2012-11-02 | D111: 2012-11-02 | E111: TO CHECK | F111: 0
A112: XXX | B112: TRUE | C112: 2012-11-02 | D112: 2012-11-06 | E112: TO CHECK | F112: 4
A113: XXX | B113: TRUE | C113: 2012-11-02 | D113: 2012-11-06 | F113: 4
A114: XXX | B114: TRUE | C114: 2012-10-29 | D114: 2012-11-06 | E114: Dead | F114: 8
A115: XXX | B115: TRUE | C115: 2012-10-29 | D115: 2012-11-06 | F115: 8
A116: XXX | B116: TRUE | C116: 2012-10-24 | D116: 2012-11-12 | E116: Dead | F116: 19
A117: XXX | B117: TRUE | C117: 2012-10-24 | D117: 2012-12-17 | E117: Dead | F117: 54
A118: XXX | B118: TRUE | C118: 2012-10-18 | D118: 2012-10-19 | F118: 1
A119: XXX | B119: TRUE | C119: 2012-10-15 | D119: 2012-10-15 | E119: TO CHECK | F119: 0
A120: XXX | B120: TRUE | C120: 2012-10-12 | D120: 2012-10-12 | F120: 0
A121: XXX | B121: TRUE | C121: 2012-10-12 | D121: 2012-10-19 | E121: TO CHECK | F121: 7
A122: XXX | B122: TRUE | C122: 2012-10-11 | D122: 2012-10-12 | F122: 1
A123: XXX | B123: TRUE | C123: 2012-10-15 | D123: 2012-10-15 | F123: 0
A124: XXX | B124: TRUE | C124: 2012-10-11 | D124: 2012-10-12 | E124: TO CHECK | F124: 1
A125: XXX | B125: TRUE | C125: 2012-10-11 | D125: 2012-10-11 | F125: 0
A126: XXX | B126: TRUE | C126: 2012-10-11 | D126: 2012-10-11 | F126: 0
A127: XXX | B127: TRUE | C127: 2012-10-15 | D127: 2012-10-15 | F127: 0
A128: XXX | B128: TRUE | C128: 2012-10-11 | D128: 2012-10-11 | F128: 0
A129: XXX | B129: TRUE | C129: 2012-10-10 | D129: 2012-10-10 | F129: 0
A130: XXX | B130: TRUE | C130: 2012-10-10 | D130: 2012-10-10 | F130: 0
A131: XXX | B131: TRUE | C131: 2012-10-09 | D131: 2012-10-11 | E131: Dead | F131: 2
A132: XXX | B132: TRUE | C132: 2012-10-09 | D132: 2012-10-10 | F132: 1
A133: XXX | B133: TRUE | C133: 2012-10-09 | D133: 2012-10-09 | F133: 0
A134: XXX | B134: TRUE | C134: 2012-10-08 | D134: 2012-10-16 | E134: TO CHECK | F134: 8
A135: XXX | B135: TRUE | C135: 2012-10-08 | D135: 2012-10-12 | F135: 4
A136: XXX | B136: TRUE | C136: 2012-10-08 | D136: 2012-10-10 | F136: 2
A137: XXX | B137: TRUE | C137: 2012-10-08 | D137: 2012-10-15 | F137: 7
A138: XXX | B138: TRUE | C138: 2012-10-08 | D138: 2012-11-23 | F138: 46
A139: XXX | B139: TRUE | C139: 2012-10-08 | D139: 2012-10-08 | F139: 0
A140: XXX | B140: TRUE | C140: 2012-10-08 | D140: 2012-10-08 | F140: 0
A141: XXX | B141: TRUE | C141: 2012-10-07 | D141: 2012-10-14 | F141: =D141-C141 -> 7
A142: XXX | B142: TRUE | C142: 2012-10-05 | D142: 2012-10-08 | F142: 3
A143: XXX | B143: TRUE | C143: 2012-10-05 | D143: 2012-10-10 | F143: 5
A144: XXX | B144: TRUE | C144: 2012-10-05 | D144: 2012-10-05 | F144: 0
A145: XXX | B145: TRUE | C145: 2012-10-05 | D145: 2012-10-18 | F145: 13
A146: XXX | B146: TRUE | C146: 2012-10-05 | D146: 2012-10-05 | E146: TO CHECK | F146: 0
A147: XXX | B147: TRUE | C147: 2012-10-05 | D147: 2012-10-05 | E147: TO CHECK | F147: 0
A148: XXX | B148: TRUE | C148: 2012-10-05 | D148: 2012-10-05 | F148: 0
A149: XXX | B149: TRUE | C149: 2012-10-05 | D149: 2012-10-05 | E149: TO CHECK | F149: 0
A150: XXX | B150: TRUE | C150: 2012-10-05 | D150: 2012-10-11 | F150: 6
A151: XXX | B151: TRUE | C151: 2012-10-05 | D151: 2012-10-16 | E151: Dead; TO CHECK | F151: 11
A152: XXX | B152: TRUE | C152: 2012-10-04 | D152: 2012-10-05 | F152: 1
A153: XXX | B153: TRUE | C153: 2012-10-04 | D153: 2012-10-04 | F153: 0
A154: XXX | B154: TRUE | C154: 2012-10-03 | D154: 2012-10-09 | F154: 6
A155: XXX | B155: TRUE | C155: 2012-10-03 | D155: 2012-10-12 | F155: 9
A156: XXX | B156: TRUE | C156: 2012-10-02 | D156: 2012-10-13 | F156: 11
A157: XXX | B157: TRUE | C157: 2012-10-02 | D157: 2012-10-10 | E157: Dead | F157: 8
A158: XXX | B158: TRUE | C158: 2012-10-02 | D158: 2012-10-08 | F158: 6
A159: XXX | B159: TRUE | C159: 2012-10-02 | D159: 2012-10-10 | F159: 8
A160: XXX | B160: TRUE | C160: 2012-10-02 | D160: 2012-10-04 | F160: 2
A161: XXX | B161: TRUE | C161: 2012-10-01 | D161: 2012-10-02 | E161: TO CHECK | F161: 1
A162: XXX | B162: TRUE | C162: 2012-10-01 | D162: 2012-10-09 | E162: TO CHECK | F162: 8
A163: XXX | B163: TRUE | C163: 2012-10-01 | D163: 2012-10-01 | F163: 0
A164: XXX | B164: TRUE | C164: 2012-10-01 | D164: 2012-10-01 | F164: 0
A165: XXX | B165: TRUE | C165: 2012-09-27 | D165: 2012-09-27 | E165: TO CHECK | F165: 0
A166: XXX | B166: TRUE | C166: 2012-09-27 | D166: 2012-09-27 | F166: 0
A167: XXX | B167: TRUE | C167: 2012-09-27 | D167: 2012-09-27 | F167: 0
A168: XXX | B168: TRUE | C168: 2012-09-26 | D168: 2012-09-27 | F168: 1
A169: XXX | B169: TRUE | C169: 2012-09-26 | D169: 2012-10-02 | F169: 6
A170: XXX | B170: TRUE | C170: 2012-09-26 | D170: 2012-09-27 | F170: 1
A171: XXX | B171: TRUE | C171: 2012-09-26 | D171: 2012-09-27 | F171: 1
A172: XXX | B172: TRUE | C172: 2012-09-26 | D172: 2012-10-01 | E172: TO CHECK | F172: 5
A173: XXX | B173: TRUE | C173: 2012-09-26 | D173: 2012-12-17 | E173: Dead | F173: 82
A174: XXX | B174: TRUE | C174: 2012-09-26 | D174: 2012-09-26 | F174: 0
A175: XXX | B175: TRUE | C175: 2012-09-26 | D175: 2012-09-27 | F175: 1
A176: XXX | B176: TRUE | C176: 2012-09-25 | D176: 2012-09-25 | F176: 0
A177: XXX | B177: TRUE | C177: 2012-09-25 | D177: 2012-09-26 | F177: 1
A178: XXX | B178: TRUE | C178: 2012-09-24 | D178: 2012-10-09 | F178: 15
A179: XXX | B179: TRUE | C179: 2012-09-24 | D179: 2012-10-16 | E179: Dead; TO CHECK | F179: 22
A180: XXX | B180: TRUE | C180: 2012-09-24 | D180: 2012-10-16 | E180: Dead; TO CHECK | F180: 22
A181: XXX | B181: TRUE | C181: 2012-09-24 | D181: 2012-10-08 | E181: TO CHECK | F181: 14
A182: XXX | B182: TRUE | C182: 2012-10-02 | D182: 2012-10-02 | F182: 0
A183: XXX | B183: TRUE | C183: 2012-10-12 | D183: 2012-10-12 | F183: 0
A184: XXX | B184: TRUE | C184: 2012-10-03 | D184: 2012-10-03 | F184: 0
A185: XXX | B185: TRUE | C185: 2012-10-01 | D185: 2012-10-01 | F185: 0
A186: XXX | B186: TRUE | C186: 2012-10-05 | D186: 2012-10-05 | F186: 0
A187: XXX | B187: TRUE | C187: 2012-10-04 | D187: 2012-10-04 | F187: 0
A188: XXX | B188: TRUE | C188: 2012-10-15 | D188: 2012-10-15 | F188: 0
A189: XXX | B189: TRUE | C189: 2012-09-28 | D189: 2012-09-28 | F189: 0
A190: XXX | B190: TRUE | C190: 2012-09-27 | D190: 2012-09-27 | F190: 0
A191: XXX | B191: TRUE | C191: 2012-10-09 | D191: 2012-10-09 | F191: 0
A192: XXX | B192: TRUE | C192: 2012-10-11 | D192: 2012-10-11 | F192: 0
A193: XXX | B193: TRUE | C193: 2012-09-24 | D193: 2012-09-24 | F193: 0
A194: XXX | B194: TRUE | C194: 2012-09-26 | D194: 2012-09-26 | F194: 0
A195: XXX | B195: TRUE | C195: 2012-10-08 | D195: 2012-10-08 | F195: 0
A196: XXX | B196: TRUE | C196: 2012-09-24 | D196: 2012-09-26 | F196: 2
A197: XXX | B197: TRUE | C197: 2012-09-24 | D197: 2012-09-24 | F197: 0
A198: XXX | B198: TRUE | C198: 2012-09-24 | D198: 2012-10-05 | E198: Dead | F198: 11
A199: XXX | B199: TRUE | C199: 2012-09-24 | D199: 2012-10-04 | F199: 10
A200: XXX | B200: TRUE | C200: 2012-09-21 | D200: 2012-09-21 | F200: 0
... 642 more rows

Sheet MeetingRawData
A1: Subject | B1: Start Time | C1: Duration
A2: ХХХ | B2: 2012-06-25T17:30:00 | C2: 0.5
A3: ХХХ | B3: 2012-06-25T18:00:00 | C3: 0.5
A4: ХХХ | B4: 2012-06-27T16:00:00 | C4: 0.5
A5: ХХХ | B5: 2012-06-28T12:00:00 | C5: 0.5
A6: ХХХ | B6: 2012-06-28T12:30:00 | C6: 0.5
A7: ХХХ | B7: 2012-06-28T13:00:00 | C7: 0.5
A8: ХХХ | B8: 2012-06-28T14:00:00 | C8: 0.5
A9: ХХХ | B9: 2012-06-28T17:00:00 | C9: 0.5
A10: ХХХ | B10: 2012-06-29T12:30:00 | C10: 0.5
A11: ХХХ | B11: 2012-06-29T15:30:00 | C11: 0.5
A12: ХХХ | B12: 2012-06-29T16:00:00 | C12: 0.5
A13: ХХХ | B13: 2012-07-03T11:00:00 | C13: 1
A14: ХХХ | B14: 2012-07-03T12:00:00 | C14: 1
A15: ХХХ | B15: 2012-07-05T13:00:00 | C15: 1
A16: ХХХ | B16: 2012-07-06T13:00:00 | C16: 1
A17: ХХХ | B17: 2012-07-06T16:00:00 | C17: 1
A18: ХХХ | B18: 2012-07-26T14:00:00 | C18: 1
A19: ХХХ | B19: 2012-08-02T12:30:00 | C19: 1
A20: ХХХ | B20: 2012-08-02T18:00:00 | C20: 1
A21: ХХХ | B21: 2012-08-03T15:30:00 | C21: 1.5
A22: ХХХ | B22: 2012-08-03T17:00:00 | C22: 1
A23: ХХХ | B23: 2012-08-06T16:00:00 | C23: 1
A24: ХХХ | B24: 2012-08-09T12:30:00 | C24: 1
A25: ХХХ | B25: 2012-08-10T15:30:00 | C25: 1
A26: ХХХ | B26: 2012-08-13T19:30:00 | C26: 2
A27: ХХХ | B27: 2012-08-14T13:00:00 | C27: 0.5
A28: ХХХ | B28: 2012-08-14T14:30:00 | C28: 1
A29: ХХХ | B29: 2012-08-15T17:30:00 | C29: 1
A30: ХХХ | B30: 2012-08-17T15:00:00 | C30: 1
A31: ХХХ | B31: 2012-08-20T16:30:00 | C31: 1
A32: ХХХ | B32: 2012-08-24T14:30:00 | C32: 1
A33: ХХХ | B33: 2012-08-29T14:30:00 | C33: 1
A34: ХХХ | B34: 2012-08-30T13:00:00 | C34: 0.5
A35: ХХХ | B35: 2012-09-04T13:30:00 | C35: 0.5
A36: ХХХ | B36: 2012-09-05T10:00:00 | C36: 1
A37: ХХХ | B37: 2012-09-10T16:00:00 | C37: 1
A38: ХХХ | B38: 2012-09-12T14:00:00 | C38: 0.5
A39: ХХХ | B39: 2012-09-13T15:00:00 | C39: 1
A40: ХХХ | B40: 2012-09-14T16:00:00 | C40: 0.5
A41: ХХХ | B41: 2012-09-17T15:00:00 | C41: 1
A42: ХХХ | B42: 2012-09-17T16:00:00 | C42: 1
A43: ХХХ | B43: 2012-09-19T11:00:00 | C43: 1.5
A44: ХХХ | B44: 2012-09-19T14:30:00 | C44: 0.5
A45: ХХХ | B45: 2012-09-19T17:30:00 | C45: 1
A46: ХХХ | B46: 2012-09-24 | C46: 32
A47: ХХХ | B47: 2012-09-25T15:30:00 | C47: 1
A48: ХХХ | B48: 2012-09-26T12:00:00 | C48: 0.5
A49: ХХХ | B49: 2012-09-27T10:30:00 | C49: 0.5
A50: ХХХ | B50: 2012-09-27T11:00:00 | C50: 0.5
A51: ХХХ | B51: 2012-09-27T12:30:00 | C51: 0.5
A52: ХХХ | B52: 2012-09-27T19:00:00 | C52: 1
A53: ХХХ | B53: 2012-10-02T11:00:00 | C53: 3
A54: ХХХ | B54: 2012-10-02T15:30:00 | C54: 0.5
A55: ХХХ | B55: 2012-10-03T17:30:00 | C55: 1
A56: ХХХ | B56: 2012-10-04T15:00:00 | C56: 1
A57: ХХХ | B57: 2012-10-04T18:00:00 | C57: 1
A58: ХХХ | B58: 2012-10-05T15:00:00 | C58: 0.08333333333
A59: ХХХ | B59: 2012-10-05T15:25:00 | C59: 0.25
A60: ХХХ | B60: 2012-10-08T13:00:00 | C60: 0.5
A61: ХХХ | B61: 2012-10-08T13:30:00 | C61: 0.5
A62: ХХХ | B62: 2012-10-08T15:00:00 | C62: 0.5
A63: ХХХ | B63: 2012-10-08T15:30:00 | C63: 0.5
A64: ХХХ | B64: 2012-10-08T16:00:00 | C64: 0.5
A65: ХХХ | B65: 2012-10-09T11:00:00 | C65: 1
A66: ХХХ | B66: 2012-10-11T15:00:00 | C66: 1
A67: ХХХ | B67: 2012-10-11T17:30:00 | C67: 1
A68: ХХХ | B68: 2012-10-15T18:00:00 | C68: 1
A69: ХХХ | B69: 2012-10-16T11:00:00 | C69: 3
A70: ХХХ | B70: 2012-10-18T18:30:00 | C70: 1
A71: ХХХ | B71: 2012-10-22T12:30:00 | C71: 0.5
A72: ХХХ | B72: 2012-10-25T10:00:00 | C72: 6
A73: ХХХ | B73: 2012-10-25T16:00:00 | C73: 1
A74: ХХХ | B74: 2012-10-25T17:00:00 | C74: 1.5
A75: ХХХ | B75: 2012-10-29T15:30:00 | C75: 1
A76: ХХХ | B76: 2012-10-30T11:00:00 | C76: 3
A77: ХХХ | B77: 2012-10-30T15:00:00 | C77: 0.5
A78: ХХХ | B78: 2012-11-01T10:00:00 | C78: 3.5
A79: ХХХ | B79: 2012-11-01T17:30:00 | C79: 1
A80: ХХХ | B80: 2012-11-01T17:30:00 | C80: 0.5
A81: ХХХ | B81: 2012-11-01T20:00:00 | C81: 3
A82: ХХХ | B82: 2012-11-02T11:00:00 | C82: 1.5
A83: ХХХ | B83: 2012-11-05T16:00:00 | C83: 1.5
A84: ХХХ | B84: 2012-11-07T12:30:00 | C84: 0.5
A85: ХХХ | B85: 2012-11-07T17:00:00 | C85: 1
A86: ХХХ | B86: 2012-11-12T15:30:00 | C86: 0.5
A87: ХХХ | B87: 2012-11-12T17:30:00 | C87: 1
A88: ХХХ | B88: 2012-11-13T11:00:00 | C88: 3
A89: ХХХ | B89: 2012-11-13T15:00:00 | C89: 1
A90: ХХХ | B90: 2012-11-15T14:00:00 | C90: 1
A91: ХХХ | B91: 2012-11-16T10:30:00 | C91: 1
A92: ХХХ | B92: 2012-11-16T17:30:00 | C92: 1
A93: ХХХ | B93: 2012-11-19T17:30:00 | C93: 1
A94: ХХХ | B94: 2012-11-20T22:00:00 | C94: 1
A95: ХХХ | B95: 2012-11-22T12:00:00 | C95: 0.5
A96: ХХХ | B96: 2012-11-22T15:30:00 | C96: 1
A97: ХХХ | B97: 2012-11-26T10:30:00 | C97: 1
A98: ХХХ | B98: 2012-11-27T11:00:00 | C98: 3
A99: ХХХ | B99: 2012-11-28T12:00:00 | C99: 1
A100: ХХХ | B100: 2012-11-29T19:00:00 | C100: 3
A101: ХХХ | B101: 2012-11-30T11:00:00 | C101: 1
A102: ХХХ | B102: 2012-12-11T11:00:00 | C102: 3
A103: ХХХ | B103: 2012-12-11T17:45:00 | C103: 1
A104: ХХХ | B104: 2012-12-14T11:00:00 | C104: 1
A105: ХХХ | B105: 2012-12-19T11:00:00 | C105: 1
A106: ХХХ | B106: 2012-12-19T15:00:00 | C106: 1.5
A107: ХХХ | B107: 2012-12-20T11:00:00 | C107: 1
A108: ХХХ | B108: 2012-12-20T12:30:00 | C108: 1
A109: ХХХ | B109: 2012-12-20T18:30:00 | C109: 2
A110: ХХХ | B110: 2012-12-21T11:30:00 | C110: 0.5
A111: ХХХ | B111: 2012-12-21T12:00:00 | C111: 1
A112: ХХХ | B112: 2012-12-24T12:00:00 | C112: 1
A113: ХХХ | B113: 2012-12-24T14:30:00 | C113: 5
A114: ХХХ | B114: 2012-12-24T16:00:00 | C114: 1.5
A115: ХХХ | B115: 2012-12-24T17:30:00 | C115: 1
A116: ХХХ | B116: 2012-12-24T18:30:00 | C116: 1
A117: ХХХ | B117: 2012-12-25T11:00:00 | C117: 3
A118: ХХХ | B118: 2012-12-25T16:00:00 | C118: 0.5
A119: ХХХ | B119: 2012-12-26T15:30:00 | C119: 1
A120: ХХХ | B120: 2012-12-26T17:30:00 | C120: 1
A121: ХХХ | B121: 2012-12-27T17:00:00 | C121: 1.5
A122: ХХХ | B122: 2012-12-27T20:00:00 | C122: 1
A123: ХХХ | B123: 2012-12-28T12:00:00 | C123: 1
A124: ХХХ | B124: 2012-12-28T16:00:00 | C124: 1.5
A125: ХХХ | B125: 2013-01-04T13:30:00 | C125: 1
A126: ХХХ | B126: 2013-01-07T13:30:00 | C126: 1
A127: ХХХ | B127: 2013-01-09 | C127: 40
A128: ХХХ | B128: 2013-01-10T16:00:00 | C128: 1
A129: ХХХ | B129: 2013-01-11T12:00:00 | C129: 0.5
A130: ХХХ | B130: 2013-01-21 | C130: 40
A131: ХХХ | B131: 2013-01-21T16:00:00 | C131: 1
A132: ХХХ | B132: 2013-01-23T13:00:00 | C132: 0.5
A133: ХХХ | B133: 2013-01-23T15:00:00 | C133: 1.5
A134: ХХХ | B134: 2013-01-24T16:00:00 | C134: 1
A135: ХХХ | B135: 2013-01-28T11:00:00 | C135: 2
A136: ХХХ | B136: 2013-01-28T13:00:00 | C136: 1
A137: ХХХ | B137: 2013-01-28T16:00:00 | C137: 1
A138: ХХХ | B138: 2013-01-29T10:00:00 | C138: 8
A139: ХХХ | B139: 2013-01-29T11:30:00 | C139: 6
A140: ХХХ | B140: 2013-01-29T18:00:00 | C140: 1
A141: ХХХ | B141: 2013-01-30 | C141: 24
A142: ХХХ | B142: 2013-01-30T11:00:00 | C142: 1
A143: ХХХ | B143: 2013-01-30T13:00:00 | C143: 0.5
A144: ХХХ | B144: 2013-01-30T16:30:00 | C144: 0.5
A145: ХХХ | B145: 2013-01-30T17:00:00 | C145: 3
A146: ХХХ | B146: 2013-01-30T18:30:00 | C146: 1
A147: ХХХ | B147: 2013-01-31T11:00:00 | C147: 1
A148: ХХХ | B148: 2013-01-31T12:30:00 | C148: 6
A149: ХХХ | B149: 2013-01-31T15:00:00 | C149: 0.5
A150: ХХХ | B150: 2013-01-31T16:00:00 | C150: 1
A151: ХХХ | B151: 2013-02-01T18:00:00 | C151: 1
A152: ХХХ | B152: 2013-02-04T10:00:00 | C152: 3.5
A153: ХХХ | B153: 2013-02-04T14:00:00 | C153: 5
A154: ХХХ | B154: 2013-02-04T16:00:00 | C154: 1
A155: ХХХ | B155: 2013-02-04T19:00:00 | C155: 3
A156: ХХХ | B156: 2013-02-05T12:00:00 | C156: 0.5
A157: ХХХ | B157: 2013-02-05T14:30:00 | C157: 2
A158: ХХХ | B158: 2013-02-05T20:00:00 | C158: 0.5
A159: ХХХ | B159: 2013-02-06T11:00:00 | C159: 1
A160: ХХХ | B160: 2013-02-06T12:00:00 | C160: 1
A161: ХХХ | B161: 2013-02-06T13:00:00 | C161: 0.5
A162: ХХХ | B162: 2013-02-06T14:00:00 | C162: 5
A163: ХХХ | B163: 2013-02-07T10:00:00 | C163: 8
A164: ХХХ | B164: 2013-02-07T16:00:00 | C164: 1
A165: ХХХ | B165: 2013-02-08T10:00:00 | C165: 3.5
A166: ХХХ | B166: 2013-02-08T15:30:00 | C166: 1
A167: ХХХ | B167: 2013-02-08T17:00:00 | C167: 1
A168: ХХХ | B168: 2013-02-11T10:30:00 | C168: 1
A169: ХХХ | B169: 2013-02-11T15:30:00 | C169: 1.5
A170: ХХХ | B170: 2013-02-11T16:00:00 | C170: 1
A171: ХХХ | B171: 2013-02-11T17:00:00 | C171: 2
A172: ХХХ | B172: 2013-02-12T15:30:00 | C172: 1
A173: ХХХ | B173: 2013-02-12T18:00:00 | C173: 0.5
A174: ХХХ | B174: 2013-02-12T18:30:00 | C174: 2.5
A175: ХХХ | B175: 2013-02-13T13:00:00 | C175: 0.5
A176: ХХХ | B176: 2013-02-14T10:30:00 | C176: 1
A177: ХХХ | B177: 2013-02-14T16:00:00 | C177: 1
A178: ХХХ | B178: 2013-02-14T19:00:00 | C178: 2
A179: ХХХ | B179: 2013-02-15T10:30:00 | C179: 8
A180: ХХХ | B180: 2013-02-18T10:00:00 | C180: 2.5
A181: ХХХ | B181: 2013-02-18T12:30:00 | C181: 1
A182: ХХХ | B182: 2013-02-18T16:00:00 | C182: 1
A183: ХХХ | B183: 2013-02-19T10:00:00 | C183: 4.5
A184: ХХХ | B184: 2013-02-19T15:00:00 | C184: 1
A185: ХХХ | B185: 2013-02-19T16:00:00 | C185: 1
A186: ХХХ | B186: 2013-02-19T18:00:00 | C186: 3
A187: ХХХ | B187: 2013-02-20T10:00:00 | C187: 8
A188: ХХХ | B188: 2013-02-20T13:00:00 | C188: 0.5
A189: ХХХ | B189: 2013-02-20T17:00:00 | C189: 1
A190: ХХХ | B190: 2013-02-21T10:00:00 | C190: 1.5
A191: ХХХ | B191: 2013-02-21T13:00:00 | C191: 0.5
A192: ХХХ | B192: 2013-02-21T16:00:00 | C192: 6
A193: ХХХ | B193: 2013-02-21T16:00:00 | C193: 1
A194: ХХХ | B194: 2013-02-22T10:00:00 | C194: 1
A195: ХХХ | B195: 2013-02-22T11:00:00 | C195: 3.5
A196: ХХХ | B196: 2013-02-22T15:00:00 | C196: 3.5
A197: ХХХ | B197: 2013-02-22T18:30:00 | C197: 3.5
A198: ХХХ | B198: 2013-02-25T16:00:00 | C198: 1
A199: ХХХ | B199: 2013-02-27T11:00:00 | C199: 1
A200: ХХХ | B200: 2013-02-27T13:00:00 | C200: 0.5
... 218 more rows

Sheet Statistics
B1: Axis Name | C1: Week Start Date | D1: Week End Date | E1: In Tasks | F1: Out Tasks | G1: Tasks Balance | H1: Meetings Duration, hrs
B2: Earlier | C2: 0 | D2: =LastUpdated-WEEKDAY(LastUpdated,3)-7*A3-1 -> 2013-03-03 | E2: =COUNTIFS(TaskRawData!C:C,"<="&D2,TaskRawData!C:C,">="&C2) -> 617 | F2: =COUNTIFS(TaskRawData!D:D,"<="&D2,TaskRawData!D:D,">="&C2) -> 596 | G2: =E2-F2 -> 21 | H2: =SUMIFS(MeetingRawData!C:C,MeetingRawData!B:B,"<="&D2,MeetingRawData!B:B,">="&C2) -> 445.3333333
A3: 16 | B3: =TEXT(A3,"?") & " week(s) ago" -> 16 week(s) ago | C3: =D2+1 -> 2013-03-04 | D3: =C3+6 -> 2013-03-10 | E3: =COUNTIFS(TaskRawData!C:C,"<="&D3,TaskRawData!C:C,">="&C3) -> 16 | F3: =COUNTIFS(TaskRawData!D:D,"<="&D3,TaskRawData!D:D,">="&C3) -> 18 | G3: =E3-F3+G2 -> 19 | H3: =SUMIFS(MeetingRawData!C:C,MeetingRawData!B:B,"<="&D3,MeetingRawData!B:B,">="&C3) -> 25.5
A4: =A3-1 -> 15 | B4: 15 week(s) ago | C4: =C3+7 -> 2013-03-11 | D4: 2013-03-17 | E4: =COUNTIFS(TaskRawData!C:C,"<="&D4,TaskRawData!C:C,">="&C4) -> 18 | F4: =COUNTIFS(TaskRawData!D:D,"<="&D4,TaskRawData!D:D,">="&C4) -> 13 | G4: =E4-F4+G3 -> 24 | H4: =SUMIFS(MeetingRawData!C:C,MeetingRawData!B:B,"<="&D4,MeetingRawData!B:B,">="&C4) -> 97
A5: 14 | B5: 14 week(s) ago | C5: 2013-03-18 | D5: 2013-03-24 | E5: =COUNTIFS(TaskRawData!C:C,"<="&D5,TaskRawData!C:C,">="&C5) -> 13 | F5: =COUNTIFS(TaskRawData!D:D,"<="&D5,TaskRawData!D:D,">="&C5) -> 16 | G5: 21 | H5: =SUMIFS(MeetingRawData!C:C,MeetingRawData!B:B,"<="&D5,MeetingRawData!B:B,">="&C5) -> 54.5
A6: 13 | B6: =TEXT(A6,"?") & " week(s) ago" -> 13 week(s) ago | C6: 2013-03-25 | D6: =C6+6 -> 2013-03-31 | E6: =COUNTIFS(TaskRawData!C:C,"<="&D6,TaskRawData!C:C,">="&C6) -> 17 | F6: =COUNTIFS(TaskRawData!D:D,"<="&D6,TaskRawData!D:D,">="&C6) -> 20 | G6: =E6-F6+G5 -> 18 | H6: =SUMIFS(MeetingRawData!C:C,MeetingRawData!B:B,"<="&D6,MeetingRawData!B:B,">="&C6) -> 64
A7: 12 | B7: 12 week(s) ago | C7: 2013-04-01 | D7: 2013-04-07 | E7: =COUNTIFS(TaskRawData!C:C,"<="&D7,TaskRawData!C:C,">="&C7) -> 15 | F7: =COUNTIFS(TaskRawData!D:D,"<="&D7,TaskRawData!D:D,">="&C7) -> 11 | G7: 22 | H7: =SUMIFS(MeetingRawData!C:C,MeetingRawData!B:B,"<="&D7,MeetingRawData!B:B,">="&C7) -> 32
A8: 11 | B8: 11 week(s) ago | C8: 2013-04-08 | D8: 2013-04-14 | E8: =COUNTIFS(TaskRawData!C:C,"<="&D8,TaskRawData!C:C,">="&C8) -> 8 | F8: =COUNTIFS(TaskRawData!D:D,"<="&D8,TaskRawData!D:D,">="&C8) -> 16 | G8: 14 | H8: =SUMIFS(MeetingRawData!C:C,MeetingRawData!B:B,"<="&D8,MeetingRawData!B:B,">="&C8) -> 50
A9: 10 | B9: 10 week(s) ago | C9: 2013-04-15 | D9: 2013-04-21 | E9: =COUNTIFS(TaskRawData!C:C,"<="&D9,TaskRawData!C:C,">="&C9) -> 23 | F9: =COUNTIFS(TaskRawData!D:D,"<="&D9,TaskRawData!D:D,">="&C9) -> 17 | G9: 20 | H9: =SUMIFS(MeetingRawData!C:C,MeetingRawData!B:B,"<="&D9,MeetingRawData!B:B,">="&C9) -> 43.5
A10: 9 | B10: 9 week(s) ago | C10: 2013-04-22 | D10: 2013-04-28 | E10: =COUNTIFS(TaskRawData!C:C,"<="&D10,TaskRawData!C:C,">="&C10) -> 0 | F10: =COUNTIFS(TaskRawData!D:D,"<="&D10,TaskRawData!D:D,">="&C10) -> 0 | G10: 20 | H10: =SUMIFS(MeetingRawData!C:C,MeetingRawData!B:B,"<="&D10,MeetingRawData!B:B,">="&C10) -> 52.5
A11: 8 | B11: 8 week(s) ago | C11: 2013-04-29 | D11: 2013-05-05 | E11: =COUNTIFS(TaskRawData!C:C,"<="&D11,TaskRawData!C:C,">="&C11) -> 0 | F11: =COUNTIFS(TaskRawData!D:D,"<="&D11,TaskRawData!D:D,">="&C11) -> 0 | G11: 20 | H11: =SUMIFS(MeetingRawData!C:C,MeetingRawData!B:B,"<="&D11,MeetingRawData!B:B,">="&C11) -> 12.5
A12: 7 | B12: 7 week(s) ago | C12: 2013-05-06 | D12: 2013-05-12 | E12: =COUNTIFS(TaskRawData!C:C,"<="&D12,TaskRawData!C:C,">="&C12) -> 0 | F12: =COUNTIFS(TaskRawData!D:D,"<="&D12,TaskRawData!D:D,">="&C12) -> 0 | G12: 20 | H12: =SUMIFS(MeetingRawData!C:C,MeetingRawData!B:B,"<="&D12,MeetingRawData!B:B,">="&C12) -> 12.5
A13: 6 | B13: 6 week(s) ago | C13: 2013-05-13 | D13: 2013-05-19 | E13: =COUNTIFS(TaskRawData!C:C,"<="&D13,TaskRawData!C:C,">="&C13) -> 28 | F13: =COUNTIFS(TaskRawData!D:D,"<="&D13,TaskRawData!D:D,">="&C13) -> 25 | G13: 23 | H13: =SUMIFS(MeetingRawData!C:C,MeetingRawData!B:B,"<="&D13,MeetingRawData!B:B,">="&C13) -> 20.25
A14: 5 | B14: 5 week(s) ago | C14: 2013-05-20 | D14: 2013-05-26 | E14: =COUNTIFS(TaskRawData!C:C,"<="&D14,TaskRawData!C:C,">="&C14) -> 20 | F14: =COUNTIFS(TaskRawData!D:D,"<="&D14,TaskRawData!D:D,">="&C14) -> 17 | G14: 26 | H14: =SUMIFS(MeetingRawData!C:C,MeetingRawData!B:B,"<="&D14,MeetingRawData!B:B,">="&C14) -> 32.16666667
A15: 4 | B15: 4 week(s) ago | C15: 2013-05-27 | D15: 2013-06-02 | E15: =COUNTIFS(TaskRawData!C:C,"<="&D15,TaskRawData!C:C,">="&C15) -> 23 | F15: =COUNTIFS(TaskRawData!D:D,"<="&D15,TaskRawData!D:D,">="&C15) -> 26 | G15: 23 | H15: =SUMIFS(MeetingRawData!C:C,MeetingRawData!B:B,"<="&D15,MeetingRawData!B:B,">="&C15) -> 41.75
A16: 3 | B16: 3 week(s) ago | C16: 2013-06-03 | D16: 2013-06-09 | E16: =COUNTIFS(TaskRawData!C:C,"<="&D16,TaskRawData!C:C,">="&C16) -> 28 | F16: =COUNTIFS(TaskRawData!D:D,"<="&D16,TaskRawData!D:D,">="&C16) -> 25 | G16: 26 | H16: =SUMIFS(MeetingRawData!C:C,MeetingRawData!B:B,"<="&D16,MeetingRawData!B:B,">="&C16) -> 35.5
A17: 2 | B17: 2 week(s) ago | C17: 2013-06-10 | D17: 2013-06-16 | E17: =COUNTIFS(TaskRawData!C:C,"<="&D17,TaskRawData!C:C,">="&C17) -> 8 | F17: =COUNTIFS(TaskRawData!D:D,"<="&D17,TaskRawData!D:D,">="&C17) -> 20 | G17: 14 | H17: =SUMIFS(MeetingRawData!C:C,MeetingRawData!B:B,"<="&D17,MeetingRawData!B:B,">="&C17) -> 47.5
A18: 1 | B18: 1 week(s) ago | C18: 2013-06-17 | D18: 2013-06-23 | E18: =COUNTIFS(TaskRawData!C:C,"<="&D18,TaskRawData!C:C,">="&C18) -> 6 | F18: =COUNTIFS(TaskRawData!D:D,"<="&D18,TaskRawData!D:D,">="&C18) -> 11 | G18: 9 | H18: =SUMIFS(MeetingRawData!C:C,MeetingRawData!B:B,"<="&D18,MeetingRawData!B:B,">="&C18) -> 63
A19: 0 | B19: week(s) ago | C19: 2013-06-24 | D19: 2013-06-30 | E19: =COUNTIFS(TaskRawData!C:C,"<="&D19,TaskRawData!C:C,">="&C19) -> 1 | F19: =COUNTIFS(TaskRawData!D:D,"<="&D19,TaskRawData!D:D,">="&C19) -> 0 | G19: 10 | H19: =SUMIFS(MeetingRawData!C:C,MeetingRawData!B:B,"<="&D19,MeetingRawData!B:B,">="&C19) -> 0
B21: Completed Life-Time distribution
B23: Bin | C23: Number of tasks | D23: Cumulative | E23: Number of tasks
B24: -1
B25: 0 | C25: =E25/$E$32 -> 0.3279503106 | D25: =C25+D24 -> 0.3279503106 | E25: =COUNTIFS(TaskRawData!F:F,"<="&B25,TaskRawData!F:F,">"&B24,TaskRawData!B:B,"="&TRUE) -> 264
B26: 1 | C26: 0.1577639752 | D26: =C26+D25 -> 0.4857142857 | E26: =COUNTIFS(TaskRawData!F:F,"<="&B26,TaskRawData!F:F,">"&B25,TaskRawData!B:B,"="&TRUE) -> 127
B27: 5 | C27: 0.2211180124 | D27: 0.7068322981 | E27: =COUNTIFS(TaskRawData!F:F,"<="&B27,TaskRawData!F:F,">"&B26,TaskRawData!B:B,"="&TRUE) -> 178
B28: 10 | C28: 0.1453416149 | D28: 0.852173913 | E28: =COUNTIFS(TaskRawData!F:F,"<="&B28,TaskRawData!F:F,">"&B27,TaskRawData!B:B,"="&TRUE) -> 117
B29: 20 | C29: 0.07204968944 | D29: 0.9242236025 | E29: =COUNTIFS(TaskRawData!F:F,"<="&B29,TaskRawData!F:F,">"&B28,TaskRawData!B:B,"="&TRUE) -> 58
B30: 50 | C30: 0.07577639752 | D30: 1 | E30: =COUNTIFS(TaskRawData!F:F,"<="&B30,TaskRawData!F:F,">"&B29,TaskRawData!B:B,"="&TRUE) -> 61
B32: Total | E32: =SUM(E25:E31) -> 805
B35: Pending Life-Time distribution
B37: Bin | C37: Number of tasks | D37: Cumulative | E37: Number of tasks
B38: -1
B39: 1 | C39: =E39/$E$46 ->  | D39: =C39+D38 ->  | E39: =COUNTIFS(TaskRawData!F:F,"<="&B39,TaskRawData!F:F,">"&B38,TaskRawData!B:B,"="&FALSE) -> 0
B40: 7 | C40: =E40/$E$32 -> 0 | D40: =C40+D39 ->  | E40: =COUNTIFS(TaskRawData!F:F,"<="&B40,TaskRawData!F:F,">"&B39,TaskRawData!B:B,"="&FALSE) -> 0
B41: 14 | C41: 0 | E41: =COUNTIFS(TaskRawData!F:F,"<="&B41,TaskRawData!F:F,">"&B40,TaskRawData!B:B,"="&FALSE) -> 0
B42: 28 | C42: 0 | E42: =COUNTIFS(TaskRawData!F:F,"<="&B42,TaskRawData!F:F,">"&B41,TaskRawData!B:B,"="&FALSE) -> 0
B43: 56 | C43: 0 | E43: =COUNTIFS(TaskRawData!F:F,"<="&B43,TaskRawData!F:F,">"&B42,TaskRawData!B:B,"="&FALSE) -> 0
B44: 500 | C44: 0 | E44: =COUNTIFS(TaskRawData!F:F,"<="&B44,TaskRawData!F:F,">"&B43,TaskRawData!B:B,"="&FALSE) -> 0
B46: Total | E46: =SUM(E39:E45) -> 0
B49: Week performance
B51: Bin | C51: Number of tasks | D51: Cumulative | E51: Number of weeks
B52: -1
B53: 10 | C53: =E53/$E$46 ->  | D53: =C53+D52 ->  | E53: =COUNTIFS($F$3:$F$19,"<="&B53,$F$3:$F$19,">"&B52) -> 4
B54: 30 | C54: =E54/$E$32 -> 0.01614906832 | D54: =C54+D53 ->  | E54: 13
B55: 50 | C55: 0 | E55: 0
B56: 70 | C56: 0 | E56: 0
B57: 100 | C57: 0 | E57: 0
B58: 100 | C58: 0 | E58: 0
H59: Task Balance | L59: Out Tasks
B60: Daily stats | H60: Ra | I60: =AVERAGE(H89:H101) -> 2.307692308 | J60: Av | K60: =AVERAGE(F89:F101) -> 15.61538462 | L60: Ra | M60: =AVERAGE(L89:L106) -> 1.555555556 | N60: Av | O60: =AVERAGE(M89:M106) -> 1.666666667
A61: DOW | B61: Axis Name | C61: Date | D61: In Tasks | E61: Out Tasks | F61: Tasks Balance | G61: Meetings Duration, hrs | H61: R | I61: LCL | J61: UCL | K61: CL | L61: R | M61: Av | N61: Inflow UCL
A62: =WEEKDAY(C62,2) -> 1 | B62: =TEXT(C62,"дд-МММ, ДДД") -> 29-апр, Пн | C62: =LastUpdated-WEEKDAY(LastUpdated,3)-56 -> 2013-04-29 | D62: =COUNTIFS(TaskRawData!C:C,">="&C62,TaskRawData!C:C,"<"&C63) -> 0 | E62: =COUNTIFS(TaskRawData!D:D,">="&C62,TaskRawData!D:D,"<"&C63) -> 0 | F62: =D62-E62+G10 -> 20 | G62: =SUMIFS(MeetingRawData!C:C,MeetingRawData!B:B,">"&C62,MeetingRawData!B:B,"<"&(C62+1)) -> 3
A63: =WEEKDAY(C63,2) -> 2 | B63: =TEXT(C63,"дд-МММ, ДДД") -> 30-апр, Вт | C63: =C62+1 -> 2013-04-30 | D63: =COUNTIFS(TaskRawData!C:C,">="&C63,TaskRawData!C:C,"<"&C64) -> 0 | E63: =COUNTIFS(TaskRawData!D:D,">="&C63,TaskRawData!D:D,"<"&C64) -> 0 | F63: =D63-E63+F62 -> 20 | G63: =SUMIFS(MeetingRawData!C:C,MeetingRawData!B:B,">"&C63,MeetingRawData!B:B,"<"&(C63+1)) -> 0 | H63: =ABS(F63-F62) -> 0 | I63: =K63-2.66*$I$60 -> 9.476923077 | J63: =K63+2.66*$I$60 -> 21.75384615 | K63: =$K$60 -> 15.61538462 | L63: =ABS(D62-D63) -> 0 | M63: =(D63+D62)/2 -> 0 | N63: =$O$60+2.66*$M$60 -> 5.804444444
A64: 3 | B64: 01-май, Ср | C64: =C63+1 -> 2013-05-01 | D64: =COUNTIFS(TaskRawData!C:C,">="&C64,TaskRawData!C:C,"<"&C65) -> 0 | E64: =COUNTIFS(TaskRawData!D:D,">="&C64,TaskRawData!D:D,"<"&C65) -> 0 | F64: =D64-E64+F63 -> 20 | G64: =SUMIFS(MeetingRawData!C:C,MeetingRawData!B:B,">"&C64,MeetingRawData!B:B,"<"&(C64+1)) -> 3.5 | H64: =ABS(F64-F63) -> 0 | I64: =K64-2.66*$I$60 -> 9.476923077 | J64: =K64+2.66*$I$60 -> 21.75384615 | K64: 15.61538462 | L64: =ABS(D63-D64) -> 0 | M64: =(D64+D63)/2 -> 0 | N64: =$O$60+2.66*$M$60 -> 5.804444444
A65: 4 | B65: 02-май, Чт | C65: 2013-05-02 | D65: =COUNTIFS(TaskRawData!C:C,">="&C65,TaskRawData!C:C,"<"&C66) -> 0 | E65: =COUNTIFS(TaskRawData!D:D,">="&C65,TaskRawData!D:D,"<"&C66) -> 0 | F65: 20 | G65: =SUMIFS(MeetingRawData!C:C,MeetingRawData!B:B,">"&C65,MeetingRawData!B:B,"<"&(C65+1)) -> 3 | H65: 0 | I65: 9.476923077 | J65: 21.75384615 | K65: 15.61538462 | L65: 0 | M65: 0 | N65: 5.804444444
A66: 5 | B66: 03-май, Пт | C66: 2013-05-03 | D66: =COUNTIFS(TaskRawData!C:C,">="&C66,TaskRawData!C:C,"<"&C67) -> 0 | E66: =COUNTIFS(TaskRawData!D:D,">="&C66,TaskRawData!D:D,"<"&C67) -> 0 | F66: 20 | G66: =SUMIFS(MeetingRawData!C:C,MeetingRawData!B:B,">"&C66,MeetingRawData!B:B,"<"&(C66+1)) -> 3 | H66: 0 | I66: 9.476923077 | J66: 21.75384615 | K66: 15.61538462 | L66: 0 | M66: 0 | N66: 5.804444444
A67: 1 | B67: 06-май, Пн | C67: =C66+3 -> 2013-05-06 | D67: =COUNTIFS(TaskRawData!C:C,">="&C67,TaskRawData!C:C,"<"&C68) -> 0 | E67: =COUNTIFS(TaskRawData!D:D,">="&C67,TaskRawData!D:D,"<"&C68) -> 0 | F67: 20 | G67: =SUMIFS(MeetingRawData!C:C,MeetingRawData!B:B,">"&C67,MeetingRawData!B:B,"<"&(C67+1)) -> 3 | H67: 0 | I67: 9.476923077 | J67: 21.75384615 | K67: 15.61538462 | L67: 0 | M67: 0 | N67: 5.804444444
A68: 2 | B68: 07-май, Вт | C68: =C67+1 -> 2013-05-07 | D68: =COUNTIFS(TaskRawData!C:C,">="&C68,TaskRawData!C:C,"<"&C69) -> 0 | E68: =COUNTIFS(TaskRawData!D:D,">="&C68,TaskRawData!D:D,"<"&C69) -> 0 | F68: 20 | G68: =SUMIFS(MeetingRawData!C:C,MeetingRawData!B:B,">"&C68,MeetingRawData!B:B,"<"&(C68+1)) -> 0 | H68: 0 | I68: 9.476923077 | J68: 21.75384615 | K68: 15.61538462 | L68: 0 | M68: 0 | N68: 5.804444444
A69: 3 | B69: 08-май, Ср | C69: 2013-05-08 | D69: =COUNTIFS(TaskRawData!C:C,">="&C69,TaskRawData!C:C,"<"&C70) -> 0 | E69: =COUNTIFS(TaskRawData!D:D,">="&C69,TaskRawData!D:D,"<"&C70) -> 0 | F69: 20 | G69: =SUMIFS(MeetingRawData!C:C,MeetingRawData!B:B,">"&C69,MeetingRawData!B:B,"<"&(C69+1)) -> 3.5 | H69: 0 | I69: 9.476923077 | J69: 21.75384615 | K69: 15.61538462 | L69: 0 | M69: 0 | N69: 5.804444444
A70: 4 | B70: 09-май, Чт | C70: 2013-05-09 | D70: =COUNTIFS(TaskRawData!C:C,">="&C70,TaskRawData!C:C,"<"&C71) -> 0 | E70: =COUNTIFS(TaskRawData!D:D,">="&C70,TaskRawData!D:D,"<"&C71) -> 0 | F70: 20 | G70: =SUMIFS(MeetingRawData!C:C,MeetingRawData!B:B,">"&C70,MeetingRawData!B:B,"<"&(C70+1)) -> 3 | H70: 0 | I70: 9.476923077 | J70: 21.75384615 | K70: 15.61538462 | L70: 0 | M70: 0 | N70: 5.804444444
A71: 5 | B71: 10-май, Пт | C71: 2013-05-10 | D71: =COUNTIFS(TaskRawData!C:C,">="&C71,TaskRawData!C:C,"<"&C72) -> 0 | E71: =COUNTIFS(TaskRawData!D:D,">="&C71,TaskRawData!D:D,"<"&C72) -> 0 | F71: 20 | G71: =SUMIFS(MeetingRawData!C:C,MeetingRawData!B:B,">"&C71,MeetingRawData!B:B,"<"&(C71+1)) -> 3 | H71: 0 | I71: 9.476923077 | J71: 21.75384615 | K71: 15.61538462 | L71: 0 | M71: 0 | N71: 5.804444444
A72: 1 | B72: 13-май, Пн | C72: =C71+3 -> 2013-05-13 | D72: =COUNTIFS(TaskRawData!C:C,">="&C72,TaskRawData!C:C,"<"&C73) -> 15 | E72: =COUNTIFS(TaskRawData!D:D,">="&C72,TaskRawData!D:D,"<"&C73) -> 14 | F72: 21 | G72: =SUMIFS(MeetingRawData!C:C,MeetingRawData!B:B,">"&C72,MeetingRawData!B:B,"<"&(C72+1)) -> 3.5 | H72: 1 | I72: 9.476923077 | J72: 21.75384615 | K72: 15.61538462 | L72: 15 | M72: 7.5 | N72: 5.804444444
A73: 2 | B73: 14-май, Вт | C73: 2013-05-14 | D73: =COUNTIFS(TaskRawData!C:C,">="&C73,TaskRawData!C:C,"<"&C74) -> 3 | E73: =COUNTIFS(TaskRawData!D:D,">="&C73,TaskRawData!D:D,"<"&C74) -> 2 | F73: 22 | G73: =SUMIFS(MeetingRawData!C:C,MeetingRawData!B:B,">"&C73,MeetingRawData!B:B,"<"&(C73+1)) -> 0 | H73: 1 | I73: 9.476923077 | J73: 21.75384615 | K73: 15.61538462 | L73: 12 | M73: 9 | N73: 5.804444444
A74: 3 | B74: 15-май, Ср | C74: 2013-05-15 | D74: =COUNTIFS(TaskRawData!C:C,">="&C74,TaskRawData!C:C,"<"&C75) -> 3 | E74: =COUNTIFS(TaskRawData!D:D,">="&C74,TaskRawData!D:D,"<"&C75) -> 2 | F74: 23 | G74: =SUMIFS(MeetingRawData!C:C,MeetingRawData!B:B,">"&C74,MeetingRawData!B:B,"<"&(C74+1)) -> 8 | H74: 1 | I74: 9.476923077 | J74: 21.75384615 | K74: 15.61538462 | L74: 0 | M74: 3 | N74: 5.804444444
A75: 4 | B75: 16-май, Чт | C75: 2013-05-16 | D75: =COUNTIFS(TaskRawData!C:C,">="&C75,TaskRawData!C:C,"<"&C76) -> 7 | E75: =COUNTIFS(TaskRawData!D:D,">="&C75,TaskRawData!D:D,"<"&C76) -> 6 | F75: 24 | G75: =SUMIFS(MeetingRawData!C:C,MeetingRawData!B:B,">"&C75,MeetingRawData!B:B,"<"&(C75+1)) -> 5.5 | H75: 1 | I75: 9.476923077 | J75: 21.75384615 | K75: 15.61538462 | L75: 4 | M75: 5 | N75: 5.804444444
A76: 5 | B76: 17-май, Пт | C76: 2013-05-17 | D76: =COUNTIFS(TaskRawData!C:C,">="&C76,TaskRawData!C:C,"<"&C77) -> 0 | E76: =COUNTIFS(TaskRawData!D:D,">="&C76,TaskRawData!D:D,"<"&C77) -> 1 | F76: 23 | G76: =SUMIFS(MeetingRawData!C:C,MeetingRawData!B:B,">"&C76,MeetingRawData!B:B,"<"&(C76+1)) -> 3.25 | H76: 1 | I76: 9.476923077 | J76: 21.75384615 | K76: 15.61538462 | L76: 7 | M76: 3.5 | N76: 5.804444444
A77: 1 | B77: 20-май, Пн | C77: =C76+3 -> 2013-05-20 | D77: =COUNTIFS(TaskRawData!C:C,">="&C77,TaskRawData!C:C,"<"&C78) -> 10 | E77: =COUNTIFS(TaskRawData!D:D,">="&C77,TaskRawData!D:D,"<"&C78) -> 7 | F77: 26 | G77: =SUMIFS(MeetingRawData!C:C,MeetingRawData!B:B,">"&C77,MeetingRawData!B:B,"<"&(C77+1)) -> 5.5 | H77: 3 | I77: 9.476923077 | J77: 21.75384615 | K77: 15.61538462 | L77: 10 | M77: 5 | N77: 5.804444444
A78: 2 | B78: 21-май, Вт | C78: 2013-05-21 | D78: =COUNTIFS(TaskRawData!C:C,">="&C78,TaskRawData!C:C,"<"&C79) -> 3 | E78: =COUNTIFS(TaskRawData!D:D,">="&C78,TaskRawData!D:D,"<"&C79) -> 3 | F78: 26 | G78: =SUMIFS(MeetingRawData!C:C,MeetingRawData!B:B,">"&C78,MeetingRawData!B:B,"<"&(C78+1)) -> 8 | H78: 0 | I78: 9.476923077 | J78: 21.75384615 | K78: 15.61538462 | L78: 7 | M78: 6.5 | N78: 5.804444444
A79: 3 | B79: 22-май, Ср | C79: 2013-05-22 | D79: =COUNTIFS(TaskRawData!C:C,">="&C79,TaskRawData!C:C,"<"&C80) -> 1 | E79: =COUNTIFS(TaskRawData!D:D,">="&C79,TaskRawData!D:D,"<"&C80) -> 1 | F79: 26 | G79: =SUMIFS(MeetingRawData!C:C,MeetingRawData!B:B,">"&C79,MeetingRawData!B:B,"<"&(C79+1)) -> 4.666666667 | H79: 0 | I79: 9.476923077 | J79: 21.75384615 | K79: 15.61538462 | L79: 2 | M79: 2 | N79: 5.804444444
A80: 4 | B80: 23-май, Чт | C80: 2013-05-23 | D80: =COUNTIFS(TaskRawData!C:C,">="&C80,TaskRawData!C:C,"<"&C81) -> 3 | E80: =COUNTIFS(TaskRawData!D:D,">="&C80,TaskRawData!D:D,"<"&C81) -> 5 | F80: 24 | G80: =SUMIFS(MeetingRawData!C:C,MeetingRawData!B:B,">"&C80,MeetingRawData!B:B,"<"&(C80+1)) -> 10 | H80: 2 | I80: 9.476923077 | J80: 21.75384615 | K80: 15.61538462 | L80: 2 | M80: 2 | N80: 5.804444444
A81: 5 | B81: 24-май, Пт | C81: 2013-05-24 | D81: =COUNTIFS(TaskRawData!C:C,">="&C81,TaskRawData!C:C,"<"&C82) -> 3 | E81: =COUNTIFS(TaskRawData!D:D,">="&C81,TaskRawData!D:D,"<"&C82) -> 1 | F81: 26 | G81: =SUMIFS(MeetingRawData!C:C,MeetingRawData!B:B,">"&C81,MeetingRawData!B:B,"<"&(C81+1)) -> 4 | H81: 2 | I81: 9.476923077 | J81: 21.75384615 | K81: 15.61538462 | L81: 0 | M81: 3 | N81: 5.804444444
A82: 1 | B82: 27-май, Пн | C82: =C81+3 -> 2013-05-27 | D82: =COUNTIFS(TaskRawData!C:C,">="&C82,TaskRawData!C:C,"<"&C83) -> 2 | E82: =COUNTIFS(TaskRawData!D:D,">="&C82,TaskRawData!D:D,"<"&C83) -> 2 | F82: 26 | G82: =SUMIFS(MeetingRawData!C:C,MeetingRawData!B:B,">"&C82,MeetingRawData!B:B,"<"&(C82+1)) -> 5 | H82: 0 | I82: 9.476923077 | J82: 21.75384615 | K82: 15.61538462 | L82: 1 | M82: 2.5 | N82: 5.804444444
A83: 2 | B83: 28-май, Вт | C83: 2013-05-28 | D83: =COUNTIFS(TaskRawData!C:C,">="&C83,TaskRawData!C:C,"<"&C84) -> 10 | E83: =COUNTIFS(TaskRawData!D:D,">="&C83,TaskRawData!D:D,"<"&C84) -> 7 | F83: 29 | G83: =SUMIFS(MeetingRawData!C:C,MeetingRawData!B:B,">"&C83,MeetingRawData!B:B,"<"&(C83+1)) -> 9 | H83: 3 | I83: 9.476923077 | J83: 21.75384615 | K83: 15.61538462 | L83: 8 | M83: 6 | N83: 5.804444444
A84: 3 | B84: 29-май, Ср | C84: 2013-05-29 | D84: =COUNTIFS(TaskRawData!C:C,">="&C84,TaskRawData!C:C,"<"&C85) -> 4 | E84: =COUNTIFS(TaskRawData!D:D,">="&C84,TaskRawData!D:D,"<"&C85) -> 7 | F84: 26 | G84: =SUMIFS(MeetingRawData!C:C,MeetingRawData!B:B,">"&C84,MeetingRawData!B:B,"<"&(C84+1)) -> 4.5 | H84: 3 | I84: 9.476923077 | J84: 21.75384615 | K84: 15.61538462 | L84: 6 | M84: 7 | N84: 5.804444444
A85: 4 | B85: 30-май, Чт | C85: 2013-05-30 | D85: =COUNTIFS(TaskRawData!C:C,">="&C85,TaskRawData!C:C,"<"&C86) -> 6 | E85: =COUNTIFS(TaskRawData!D:D,">="&C85,TaskRawData!D:D,"<"&C86) -> 7 | F85: 25 | G85: =SUMIFS(MeetingRawData!C:C,MeetingRawData!B:B,">"&C85,MeetingRawData!B:B,"<"&(C85+1)) -> 16.75 | H85: 1 | I85: 9.476923077 | J85: 21.75384615 | K85: 15.61538462 | L85: 2 | M85: 5 | N85: 5.804444444
A86: 5 | B86: 31-май, Пт | C86: 2013-05-31 | D86: =COUNTIFS(TaskRawData!C:C,">="&C86,TaskRawData!C:C,"<"&C87) -> 1 | E86: =COUNTIFS(TaskRawData!D:D,">="&C86,TaskRawData!D:D,"<"&C87) -> 3 | F86: 23 | G86: =SUMIFS(MeetingRawData!C:C,MeetingRawData!B:B,">"&C86,MeetingRawData!B:B,"<"&(C86+1)) -> 6.5 | H86: 2 | I86: 9.476923077 | J86: 21.75384615 | K86: 15.61538462 | L86: 5 | M86: 3.5 | N86: 5.804444444
A87: 1 | B87: 03-июн, Пн | C87: =C86+3 -> 2013-06-03 | D87: =COUNTIFS(TaskRawData!C:C,">="&C87,TaskRawData!C:C,"<"&C88) -> 13 | E87: =COUNTIFS(TaskRawData!D:D,">="&C87,TaskRawData!D:D,"<"&C88) -> 15 | F87: =D87-E87+F86 -> 21 | G87: =SUMIFS(MeetingRawData!C:C,MeetingRawData!B:B,">"&C87,MeetingRawData!B:B,"<"&(C87+1)) -> 5 | H87: 2 | I87: 9.476923077 | J87: 21.75384615 | K87: 15.61538462 | L87: 12 | M87: 7 | N87: 5.804444444
A88: 2 | B88: 04-июн, Вт | C88: =C87+1 -> 2013-06-04 | D88: =COUNTIFS(TaskRawData!C:C,">="&C88,TaskRawData!C:C,"<"&C89) -> 0 | E88: =COUNTIFS(TaskRawData!D:D,">="&C88,TaskRawData!D:D,"<"&C89) -> 0 | F88: 21 | G88: =SUMIFS(MeetingRawData!C:C,MeetingRawData!B:B,">"&C88,MeetingRawData!B:B,"<"&(C88+1)) -> 11 | H88: 0 | I88: 9.476923077 | J88: 21.75384615 | K88: 15.61538462 | L88: 13 | M88: 6.5 | N88: 5.804444444
A89: 3 | B89: 05-июн, Ср | C89: 2013-06-05 | D89: =COUNTIFS(TaskRawData!C:C,">="&C89,TaskRawData!C:C,"<"&C90) -> 2 | E89: =COUNTIFS(TaskRawData!D:D,">="&C89,TaskRawData!D:D,"<"&C90) -> 2 | F89: 21 | G89: =SUMIFS(MeetingRawData!C:C,MeetingRawData!B:B,">"&C89,MeetingRawData!B:B,"<"&(C89+1)) -> 6 | H89: 0 | I89: 9.476923077 | J89: 21.75384615 | K89: 15.61538462 | L89: 2 | M89: 1 | N89: 5.804444444
A90: 4 | B90: 06-июн, Чт | C90: 2013-06-06 | D90: =COUNTIFS(TaskRawData!C:C,">="&C90,TaskRawData!C:C,"<"&C91) -> 3 | E90: =COUNTIFS(TaskRawData!D:D,">="&C90,TaskRawData!D:D,"<"&C91) -> 6 | F90: 18 | G90: =SUMIFS(MeetingRawData!C:C,MeetingRawData!B:B,">"&C90,MeetingRawData!B:B,"<"&(C90+1)) -> 10 | H90: 3 | I90: 9.476923077 | J90: 21.75384615 | K90: 15.61538462 | L90: 1 | M90: 2.5 | N90: 5.804444444
A91: 5 | B91: 07-июн, Пт | C91: 2013-06-07 | D91: =COUNTIFS(TaskRawData!C:C,">="&C91,TaskRawData!C:C,"<"&C92) -> 10 | E91: =COUNTIFS(TaskRawData!D:D,">="&C91,TaskRawData!D:D,"<"&C92) -> 2 | F91: 26 | G91: =SUMIFS(MeetingRawData!C:C,MeetingRawData!B:B,">"&C91,MeetingRawData!B:B,"<"&(C91+1)) -> 3.5 | H91: 8 | I91: 9.476923077 | J91: 21.75384615 | K91: 15.61538462 | L91: 7 | M91: 6.5 | N91: 5.804444444
A92: 1 | B92: 10-июн, Пн | C92: =C91+3 -> 2013-06-10 | D92: =COUNTIFS(TaskRawData!C:C,">="&C92,TaskRawData!C:C,"<"&C93) -> 2 | E92: =COUNTIFS(TaskRawData!D:D,">="&C92,TaskRawData!D:D,"<"&C93) -> 6 | F92: 22 | G92: =SUMIFS(MeetingRawData!C:C,MeetingRawData!B:B,">"&C92,MeetingRawData!B:B,"<"&(C92+1)) -> 7 | H92: 4 | I92: 9.476923077 | J92: 21.75384615 | K92: 15.61538462 | L92: 8 | M92: 6 | N92: 5.804444444
A93: 2 | B93: 11-июн, Вт | C93: =C92+1 -> 2013-06-11 | D93: =COUNTIFS(TaskRawData!C:C,">="&C93,TaskRawData!C:C,"<"&C94) -> 1 | E93: =COUNTIFS(TaskRawData!D:D,">="&C93,TaskRawData!D:D,"<"&C94) -> 3 | F93: 20 | G93: =SUMIFS(MeetingRawData!C:C,MeetingRawData!B:B,">"&C93,MeetingRawData!B:B,"<"&(C93+1)) -> 12 | H93: 2 | I93: 9.476923077 | J93: 21.75384615 | K93: 15.61538462 | L93: 1 | M93: 1.5 | N93: 5.804444444
A94: 3 | B94: 12-июн, Ср | C94: 2013-06-12 | D94: =COUNTIFS(TaskRawData!C:C,">="&C94,TaskRawData!C:C,"<"&C95) -> 0 | E94: =COUNTIFS(TaskRawData!D:D,">="&C94,TaskRawData!D:D,"<"&C95) -> 0 | F94: 20 | G94: =SUMIFS(MeetingRawData!C:C,MeetingRawData!B:B,">"&C94,MeetingRawData!B:B,"<"&(C94+1)) -> 3 | H94: 0 | I94: 9.476923077 | J94: 21.75384615 | K94: 15.61538462 | L94: 1 | M94: 0.5 | N94: 5.804444444
A95: 4 | B95: 13-июн, Чт | C95: 2013-06-13 | D95: =COUNTIFS(TaskRawData!C:C,">="&C95,TaskRawData!C:C,"<"&C96) -> 3 | E95: =COUNTIFS(TaskRawData!D:D,">="&C95,TaskRawData!D:D,"<"&C96) -> 7 | F95: 16 | G95: =SUMIFS(MeetingRawData!C:C,MeetingRawData!B:B,">"&C95,MeetingRawData!B:B,"<"&(C95+1)) -> 13 | H95: 4 | I95: 9.476923077 | J95: 21.75384615 | K95: 15.61538462 | L95: 3 | M95: 1.5 | N95: 5.804444444
A96: 5 | B96: 14-июн, Пт | C96: 2013-06-14 | D96: =COUNTIFS(TaskRawData!C:C,">="&C96,TaskRawData!C:C,"<"&C97) -> 2 | E96: =COUNTIFS(TaskRawData!D:D,">="&C96,TaskRawData!D:D,"<"&C97) -> 4 | F96: 14 | G96: =SUMIFS(MeetingRawData!C:C,MeetingRawData!B:B,">"&C96,MeetingRawData!B:B,"<"&(C96+1)) -> 12.5 | H96: 2 | I96: 9.476923077 | J96: 21.75384615 | K96: 15.61538462 | L96: 1 | M96: 2.5 | N96: 5.804444444
A97: 1 | B97: 17-июн, Пн | C97: =C96+3 -> 2013-06-17 | D97: =COUNTIFS(TaskRawData!C:C,">="&C97,TaskRawData!C:C,"<"&C98) -> 2 | E97: =COUNTIFS(TaskRawData!D:D,">="&C97,TaskRawData!D:D,"<"&C98) -> 5 | F97: 11 | G97: =SUMIFS(MeetingRawData!C:C,MeetingRawData!B:B,">"&C97,MeetingRawData!B:B,"<"&(C97+1)) -> 7.5 | H97: 3 | I97: 9.476923077 | J97: 21.75384615 | K97: 15.61538462 | L97: 0 | M97: 2 | N97: 5.804444444
A98: 2 | B98: 18-июн, Вт | C98: =C97+1 -> 2013-06-18 | D98: =COUNTIFS(TaskRawData!C:C,">="&C98,TaskRawData!C:C,"<"&C99) -> 2 | E98: =COUNTIFS(TaskRawData!D:D,">="&C98,TaskRawData!D:D,"<"&C99) -> 4 | F98: 9 | G98: =SUMIFS(MeetingRawData!C:C,MeetingRawData!B:B,">"&C98,MeetingRawData!B:B,"<"&(C98+1)) -> 10 | H98: 2 | I98: 9.476923077 | J98: 21.75384615 | K98: 15.61538462 | L98: 0 | M98: 2 | N98: 5.804444444
A99: 3 | B99: 19-июн, Ср | C99: 2013-06-19 | D99: =COUNTIFS(TaskRawData!C:C,">="&C99,TaskRawData!C:C,"<"&C100) -> 1 | E99: =COUNTIFS(TaskRawData!D:D,">="&C99,TaskRawData!D:D,"<"&C100) -> 1 | F99: 9 | G99: =SUMIFS(MeetingRawData!C:C,MeetingRawData!B:B,">"&C99,MeetingRawData!B:B,"<"&(C99+1)) -> 8.5 | H99: 0 | I99: 9.476923077 | J99: 21.75384615 | K99: 15.61538462 | L99: 1 | M99: 1.5 | N99: 5.804444444
A100: 4 | B100: 20-июн, Чт | C100: 2013-06-20 | D100: =COUNTIFS(TaskRawData!C:C,">="&C100,TaskRawData!C:C,"<"&C101) -> 0 | E100: =COUNTIFS(TaskRawData!D:D,">="&C100,TaskRawData!D:D,"<"&C101) -> 1 | F100: 8 | G100: =SUMIFS(MeetingRawData!C:C,MeetingRawData!B:B,">"&C100,MeetingRawData!B:B,"<"&(C100+1)) -> 10 | H100: 1 | I100: 9.476923077 | J100: 21.75384615 | K100: 15.61538462 | L100: 1 | M100: 0.5 | N100: 5.804444444
A101: 5 | B101: 21-июн, Пт | C101: 2013-06-21 | D101: =COUNTIFS(TaskRawData!C:C,">="&C101,TaskRawData!C:C,"<"&C102) -> 1 | E101: =COUNTIFS(TaskRawData!D:D,">="&C101,TaskRawData!D:D,"<"&C102) -> 0 | F101: 9 | G101: =SUMIFS(MeetingRawData!C:C,MeetingRawData!B:B,">"&C101,MeetingRawData!B:B,"<"&(C101+1)) -> 3 | H101: 1 | I101: 9.476923077 | J101: 21.75384615 | K101: 15.61538462 | L101: 1 | M101: 0.5 | N101: 5.804444444
A102: 1 | B102: 24-июн, Пн | C102: =C101+3 -> 2013-06-24 | D102: =COUNTIFS(TaskRawData!C:C,">="&C102,TaskRawData!C:C,"<"&C103) -> 1 | E102: =COUNTIFS(TaskRawData!D:D,">="&C102,TaskRawData!D:D,"<"&C103) -> 0 | F102: 10 | G102: =SUMIFS(MeetingRawData!C:C,MeetingRawData!B:B,">"&C102,MeetingRawData!B:B,"<"&(C102+1)) -> 0 | H102: 1 | I102: 9.476923077 | J102: 21.75384615 | K102: 15.61538462 | L102: 0 | M102: 1 | N102: 5.804444444
A103: 2 | B103: 25-июн, Вт | C103: =C102+1 -> 2013-06-25 | D103: =COUNTIFS(TaskRawData!C:C,">="&C103,TaskRawData!C:C,"<"&C104) -> 0 | E103: =COUNTIFS(TaskRawData!D:D,">="&C103,TaskRawData!D:D,"<"&C104) -> 0 | F103: 10 | G103: =SUMIFS(MeetingRawData!C:C,MeetingRawData!B:B,">"&C103,MeetingRawData!B:B,"<"&(C103+1)) -> 0 | H103: 0 | I103: 9.476923077 | J103: 21.75384615 | K103: 15.61538462 | L103: 1 | M103: 0.5 | N103: 5.804444444
A104: 3 | B104: 26-июн, Ср | C104: 2013-06-26 | D104: =COUNTIFS(TaskRawData!C:C,">="&C104,TaskRawData!C:C,"<"&C105) -> 0 | E104: =COUNTIFS(TaskRawData!D:D,">="&C104,TaskRawData!D:D,"<"&C105) -> 0 | F104: 10 | G104: =SUMIFS(MeetingRawData!C:C,MeetingRawData!B:B,">"&C104,MeetingRawData!B:B,"<"&(C104+1)) -> 0 | H104: 0 | I104: 9.476923077 | J104: 21.75384615 | K104: 15.61538462 | L104: 0 | M104: 0 | N104: 5.804444444
A105: 4 | B105: 27-июн, Чт | C105: 2013-06-27 | D105: =COUNTIFS(TaskRawData!C:C,">="&C105,TaskRawData!C:C,"<"&C106) -> 0 | E105: =COUNTIFS(TaskRawData!D:D,">="&C105,TaskRawData!D:D,"<"&C106) -> 0 | F105: 10 | G105: =SUMIFS(MeetingRawData!C:C,MeetingRawData!B:B,">"&C105,MeetingRawData!B:B,"<"&(C105+1)) -> 0 | H105: 0 | I105: 9.476923077 | J105: 21.75384615 | K105: 15.61538462 | L105: 0 | M105: 0 | N105: 5.804444444
A106: 5 | B106: 28-июн, Пт | C106: 2013-06-28 | D106: =COUNTIFS(TaskRawData!C:C,">="&C106,TaskRawData!C:C,"<"&C107) -> 0 | E106: =COUNTIFS(TaskRawData!D:D,">="&C106,TaskRawData!D:D,"<"&C107) -> 0 | F106: 10 | G106: =SUMIFS(MeetingRawData!C:C,MeetingRawData!B:B,">"&C106,MeetingRawData!B:B,"<"&(C106+1)) -> 0 | H106: 0 | I106: 9.476923077 | J106: 21.75384615 | K106: 15.61538462 | L106: 0 | M106: 0 | N106: 5.804444444
A107: 6 | B107: 29-июн, Сб | C107: =C106+1 -> 2013-06-29
D113: OUTFLOW | G113: INFLOW
B115: Bin | C115: Number of tasks | D115: Cumulative | E115: Number of days | G115: Number of tasks | H115: Cumulative | I115: Number of days
B116: -1
B117: 5 | C117: =E117/$E$123 -> 0.7777777778 | D117: =C117+D116 -> 0.7777777778 | E117: =COUNTIFS($E$62:$E$106,"<="&B117,$E$62:$E$106,">"&B116) -> 35 | G117: =I117/$I$123 -> 0.8444444444 | H117: =G117+H116 -> 0.8444444444 | I117: =COUNTIFS($D$62:$D$106,"<="&B117,$D$62:$D$106,">"&B116) -> 38
B118: 10 | C118: =E118/$E$123 -> 0.1777777778 | D118: =C118+D117 -> 0.9555555556 | E118: 8 | G118: 0.1111111111 | H118: =G118+H117 -> 0.9555555556 | I118: 5
B119: 15 | C119: 0.04444444444 | D119: 1 | E119: 2 | G119: 0.04444444444 | H119: 1 | I119: 2
B120: 20 | C120: 0 | D120: 1 | E120: 0 | G120: 0 | H120: 1 | I120: 0
B121: 25 | C121: 0 | D121: 1 | E121: 0 | G121: 0 | H121: 1 | I121: 0
B122: 100 | C122: 0 | D122: 1 | E122: 0 | G122: 0 | H122: 1 | I122: 0
D123: TOTAL | E123: =SUM(E117:E122) -> 45 | H123: TOTAL | I123: =SUM(I117:I122) -> 45
B129: To Do | C129: =C131-C130 -> 3
B130: To Check | C130: =COUNTIFS(TaskRawData!B:B, FALSE,TaskRawData!E:E,"TO CHECK") -> 7
B131: TOTAL | C131: =COUNTIFS(TaskRawData!B:B, FALSE) -> 10
B133: Личное | C133: =COUNTIFS(TaskRawData!B:B, FALSE,TaskRawData!E:E,"Личное") -> 0
B134: Рабочее | C134: =C131-C133 -> 10

Sheet Лист2
